Cogmind - Beta 11.1 @@@ ROGUE MODE // 2022.05.15 @ 00:11:48 Player: art-hropod Result: Destroyed by D-53 Grenadier with Mini Grenade Launcher Performance ------------- Evolutions (1) 500 Regions Visited (4) 800 Robots Destroyed (24) 120 Value Destroyed (792) 792 Prototype IDs (0) 0 Alien Tech Used (0) 0 Bonus (0) 0 TOTAL SCORE: 2212 Bonus ------- None Cogmind --------- Core Integrity 0/400 Matter 265/300 Energy 29/100 System Corruption 0% Temperature Cool (0) Movement Core (150) Ox2 Location -9/Mines Parts ------- > --- POWER (1) -------- (None) > --- PROPULSION (4) --- (None) > --- UTILITY (2) ------ Small Storage Unit > --- WEAPON (2) ------- EMP Blaster > --- INVENTORY (8) ---- Bomb Drone Bay Assault Rifle Grenade Launcher Peak State ------------ > --- POWER ------------ Ion Engine > --- PROPULSION ------- Aluminum Leg Aluminum Leg Aluminum Leg Flexi-carbon Leg > --- UTILITY ---------- Small Storage Unit Signal Interpreter > --- WEAPON ----------- Medium Laser Heavy Battle Rifle > --- INVENTORY -------- Light Ion Engine Aluminum Leg Flight Unit Bomb Drone Bay Assault Rifle EMP Blaster Grenade Launcher [Rating: 18] Favorites ----------- Power Light Ion Engine Engine Light Ion Engine Propulsion Aluminum Leg Leg Aluminum Leg Flight Unit Flight Unit Utility Small Storage Unit Storage Small Storage Unit Processor Signal Interpreter Weapon Assault Rifle Energy Gun Medium Laser Ballistic Gun Assault Rifle Ballistic Cannon Light Cannon Launcher Grenade Launcher Build | -11 -10 -10 -9 -9 ------- Run | Scr Mat Min Mat Min Slots Evolved 2 | . . . 2 . Power . | . . . . . Propulsion 2 | . . . 2 . Utility . | . . . . . Weapon . | . . . . . Parts Attached 28 | 6 5 5 4 8 Power 3 | 1 . 1 . 1 Engine 3 | 1 . 1 . 1 Core . | . . . . . Reactor . | . . . . . Propulsion 11 | 2 . 2 2 5 Treads . | . . . . . Leg 10 | 2 . 2 2 4 Wheel . | . . . . . Hover . | . . . . . Flight 1 | . . . . 1 Utility 2 | 1 1 . . . Device . | . . . . . Storage 1 | 1 . . . . Processor 1 | . 1 . . . Hackware . | . . . . . Protection . | . . . . . Artifact . | . . . . . Weapon 12 | 2 4 2 2 2 Energy Gun 2 | 1 . 1 . . Energy Cannon . | . . . . . Ballistic Gun 4 | 1 . 1 1 1 Ballistic Cannon 2 | . 2 . . . Launcher 4 | . 2 . 1 1 Special Weapon . | . . . . . Impact Weapon . | . . . . . Slashing Weapon . | . . . . . Piercing Weapon . | . . . . . Special Melee Weapon . | . . . . . Unidentified Prototypes . | . . . . . Parts Lost 14 | . . 3 . 11 Power 2 | . . . . 2 Propulsion 7 | . . 1 . 6 Utility 1 | . . . . 1 Weapon 4 | . . 2 . 2 Highest Loss Streak 11 | . . 2 . 11 To Critical Strikes . | . . . . . Average Slot Usage (%) 97 | . 93 99 99 96 Engine 12 | . 14 14 11 10 Leg 34 | . 28 28 43 41 Storage 12 | . 14 14 11 11 Processor 11 | . 7 14 11 10 Energy Gun 9 | . 1 11 11 10 Ballistic Gun 10 | . 14 10 8 11 Ballistic Cannon 3 | . 5 6 . . Launcher 1 | . 7 . 2 . Naked Turns . | . . . . . Heaviest Build 16 | 12 13 14 15 16 Greatest Support 50 | 20 20 20 40 50 Greatest Overweight (x) 5 | . . 1 . 5 Average Overweight (x) . | . . . . . Largest Inventory Capacity 8 | 8 8 8 8 8 Average Capacity 7 | 6 8 8 8 8 Most Carried 8 | 4 8 8 8 8 Average Carried 6 | 1 6 7 6 7 Final Capacity 8 | 8 8 8 8 8 Final Carried 8 | 4 8 8 8 4 Class Distribution -------------------- 59% | Mutant 40% | Scavenger-Mutant Dominant Class ---------------- Mutant | -10/Materials Mutant | -10/Mines Scavenger-Mutant | -9/Materials Scavenger-Mutant | -9/Mines Resources | -11 -10 -10 -9 -9 ----------- Run | Scr Mat Min Mat Min Matter Collected 787 | 278 51 270 84 104 Remotely . | . . . . . Salvage Created 774 | 143 64 158 229 180 Parts 41 | 8 10 5 8 10 Haulers Intercepted . | . . . . . Recyclers Shooed 2 | . 1 . 1 . Parts Field Recycled . | . . . . . Retrieved Matter . | . . . . . Parts Self-Destructed . | . . . . . Prevented . | . . . . . Kills | -11 -10 -10 -9 -9 ------- Run | Scr Mat Min Mat Min Combat Hostiles Destroyed 20 | . 4 5 7 4 Guns 8 | . 1 2 2 3 Cannons 4 | . 1 3 . . AOE 8 | . 2 . 5 1 Classes Destroyed 8 | 2 3 . 2 1 Tunneler 2 | 2 . . . . Recycler 1 | 1 . . . . Operator 1 | . 1 . . . Swarmer 3 | . 3 . . . Grunt 14 | . 1 5 5 3 Duelist 1 | . . . 1 . Sentry 1 | . . . 1 . Demolisher 1 | . . . . 1 Best Kill Streak 7 | 2 3 2 7 3 Combat Bots Only 7 | . 3 2 7 3 Max Kills in Single Turn 3 | 1 1 1 3 1 Gunslinging . | . . . . . Exploded 3 | . 1 . 3 1 Melee . | . . . . . Uniques/NPCs Destroyed . | . . . . . Combat | -11 -10 -10 -9 -9 -------- Run | Scr Mat Min Mat Min Damage Taken 2103 | . 79 631 180 1213 Core 542 | . . 142 20 380 Absorbed by Shields . | . . . . . Core Remaining (%) 71 | 100 . 43 . . Volleys Fired 81 | 6 12 34 12 17 Largest 2 | 2 2 2 2 2 Hottest 85 | 70 55 85 80 83 Shots Fired 148 | 7 24 63 22 32 Gun 103 | 7 12 38 17 29 Cannon 32 | . 7 25 . . Launcher 13 | . 5 . 5 3 Special . | . . . . . Kinetic 84 | 6 19 37 6 16 Thermal 51 | 1 . 26 11 13 Explosive 10 | . 5 . 5 . Electromagnetic 3 | . . . . 3 Robot Hit Streak 11 | 7 8 11 11 4 Robot Miss Streak 7 | . 7 4 4 2 Penetration Max . | . . . . . Secondary Targets . | . . . . . Shots Hit Robots 88 | 7 9 40 13 19 Core Hits 49 | 4 9 13 12 11 Critical Kills . | . . . . . Critical Parts Destroyed . | . . . . . Critical Strikes 1 | . . 1 . . Burn 1 | . . 1 . . Melee Attacks . | . . . . . Impact . | . . . . . Slashing . | . . . . . Piercing . | . . . . . Sneak Attacks . | . . . . . Combat Hostiles . | . . . . . Follow-up Attacks . | . . . . . Damage Inflicted 1853 | 90 358 574 503 328 Guns 829 | 90 72 284 125 258 Cannons 328 | . 38 290 . . Explosions 696 | . 248 . 378 70 Melee . | . . . . . Ramming . | . . . . . Kinetic 782 | 78 110 401 36 157 Thermal 375 | 12 . 173 89 101 Explosive 626 | . 248 . 378 . Electromagnetic 70 | . . . . 70 Impact . | . . . . . Slashing . | . . . . . Piercing . | . . . . . Highest Corruption 1 | . 1 1 . . Average Corruption 1 | . 1 1 . . Corruption Purged . | . . . . . Corruption Blocked . | . . . . . Effects 2 | . . 2 . . Message Errors 1 | . . 1 . . Matter Fused 1 | . . 1 . . Overload Shots . | . . . . . Overflow Damage 6 | . 6 . . . Projectiles . | . . . . . Explosions 6 | . 6 . . . Melee . | . . . . . Knockbacks 7 | . 1 6 . . Impact . | . . . . . Kinetic 7 | . 1 6 . . Secondary . | . . . . . Self-Inflicted Damage 23 | . 9 . 14 . Shots 2 | . 1 . 1 . Rammed . | . . . . . Targets Rammed . | . . . . . Kicked . | . . . . . Crushed . | . . . . . Highest Temperature 419 | 9 6 419 40 93 Average Temperature 95 | 6 3 131 24 56 Received Heat Transfer 528 | . 18 360 57 93 Effects 4 | . . 4 . . Shutdowns 2 | . . 2 . . Matter Decay 1 | . . 1 . . Short Circuit 1 | . . 1 . . Siege Activations . | . . . . . Robots Corrupted . | . . . . . Combat Hostiles . | . . . . . Parts Fried . | . . . . . Impact Corruptions . | . . . . . Robots Melted . | . . . . . Combat Hostiles . | . . . . . Parts Melted 3 | . . 2 . 1 Heat Transferred 1184 | 37 . 592 259 296 Parts Sabotaged . | . . . . . Parts Stolen . | . . . . . Parts Stripped . | . . . . . Power Chain Reactions 1 | . . . . 1 Missiles Intercepted . | . . . . . Alert | -11 -10 -10 -9 -9 ------- Run | Scr Mat Min Mat Min Peak Influence 344 | 15 273 206 344 203 Initial 133 | . 9 106 1 133 Average 151 | 8 115 159 225 163 Maximum Alert Level 1 | . 1 1 1 1 Low Security (%) 58 | 100 70 52 37 59 Level 1 41 | . 29 47 62 40 Level 2 . | . . . . . Level 3 . | . . . . . Level 4 . | . . . . . Level 5 . | . . . . . High Security . | . . . . . Max Security . | . . . . . Squads Dispatched 5 | . 3 . 1 1 Investigation 2 | . 2 . . . Extermination . | . . . . . Reinforcement 3 | . 1 . 1 1 Assault . | . . . . . Garrison . | . . . . . Intercept . | . . . . . Searches Triggered . | . . . . . Construction Impeded 1 | . . . . 1 Haulers Reinforced . | . . . . . Active Scanning Responses . | . . . . . Cargo Convoy Interrupts . | . . . . . Stealth | -11 -10 -10 -9 -9 --------- Run | Scr Mat Min Mat Min Distress Signals 3 | . 1 . 2 . Communications Jammed . | . . . . . Distress Signals . | . . . . . Times Spotted 27 | . 7 6 9 5 Peak Tracking Total 8 | . 4 2 8 3 Tactical Retreats . | . . . . . Traps | -11 -10 -10 -9 -9 ------- Run | Scr Mat Min Mat Min Traps Triggered . | . . . . . Indirectly . | . . . . . Trap Hack Attempts . | . . . . . Triggered . | . . . . . Disarmed . | . . . . . Reprogrammed . | . . . . . Reused . | . . . . . Traps Extracted . | . . . . . Installed . | . . . . . Triggered . | . . . . . Machines | -11 -10 -10 -9 -9 ---------- Run | Scr Mat Min Mat Min Machines Disabled 4 | . 1 . 3 . Max in Single Turn 3 | . 1 . 3 . Machines Sabotaged . | . . . . . Garrisons Compromised . | . . . . . Overloaded Fab Kills . | . . . . . Hacking | -11 -10 -10 -9 -9 --------- Run | Scr Mat Min Mat Min Machines Accessed 5 | . 3 . 1 1 Terminals 4 | . 3 . 1 . Fabricators . | . . . . . Repair Stations . | . . . . . Recycling Units . | . . . . . Scanalyzers . | . . . . . Garrison Access . | . . . . . Total Hacks 16 | . 11 . 4 1 Successful 8 | . 4 . 3 1 Failed 8 | . 7 . 1 . Catastrophic 1 | . 1 . . . Database Lockouts . | . . . . . Manual 10 | . 8 . 2 . Terminals 15 | . 11 . 4 . Fabricators . | . . . . . Repair Stations . | . . . . . Recycling Units . | . . . . . Scanalyzers . | . . . . . Garrison Access . | . . . . . Terminal Hacks 5 | . 2 . 2 1 Record 2 | . . . 2 . Open Door 1 | . . . . 1 Recall Investigation 1 | . 1 . . . Zone Layout 1 | . 1 . . . Fabricator Hacks . | . . . . . Repair Station Hacks . | . . . . . Recycling Unit Hacks . | . . . . . Scanalyzer . | . . . . . Garrison Access Hacks . | . . . . . Unauthorized Hacks 3 | . 2 . 1 . Terminals 3 | . 2 . 1 . Botnet 3 | . 2 . 1 . Fabricators . | . . . . . Repair Stations . | . . . . . Recycling Units . | . . . . . Scanalyzers . | . . . . . Garrison Access . | . . . . . Data Cores Recovered . | . . . . . Used . | . . . . . Hacking Detections 4 | . 3 . 1 . Full Trace Events 3 | . 3 . . . Feedback Events 1 | . 1 . . . Corruption 1 | . 1 . . . Feedback Blocked . | . . . . . Robot Schematics Acquired . | . . . . . Robots Built . | . . . . . Authchips . | . . . . . Time . | . . . . . Total Robot Build Rating . | . . . . . Part Schematics Acquired . | . . . . . Parts Built . | . . . . . Authchips . | . . . . . Time . | . . . . . Total Part Build Rating . | . . . . . Parts Repaired . | . . . . . Time . | . . . . . Parts Recycled . | . . . . . Recycled Matter . | . . . . . Retrieved Matter . | . . . . . Retrieved Components . | . . . . . Parts Scanalyzed . | . . . . . Part Schematics Acquired . | . . . . . Parts Damaged . | . . . . . Bothacking | -11 -10 -10 -9 -9 ------------ Run | Scr Mat Min Mat Min Used RIF Installer . | . . . . . Robots Hacked . | . . . . . Non-combat . | . . . . . Combat . | . . . . . Robot Hacks Applied . | . . . . . Relay Couplers Released . | . . . . . Fabnet Peak Effective % . | . . . . . Robots Rewired . | . . . . . Allies Hacked . | . . . . . Hacks Repelled . | . . . . . Allies | -11 -10 -10 -9 -9 -------- Run | Scr Mat Min Mat Min Total Allies 2 | . . . . 2 Largest Group 2 | . . . . 2 Highest-Rated Group 45 | . . . . 45 Highest-Rated Ally 31 | . . . . 31 Total Orders . | . . . . . Ally Attacks 5 | . . . . 5 Total Damage 40 | . . . . 40 Kills . | . . . . . Allies Corrupted . | . . . . . Allies Melted . | . . . . . Intel | -11 -10 -10 -9 -9 ------- Run | Scr Mat Min Mat Min Robot Analysis Total . | . . . . . Derelict Logs Recovered 2 | . . 1 . 1 Drone Launches . | . . . . . Drone Recoveries . | . . . . . Exploration | -11 -10 -10 -9 -9 ------------- Run | Scr Mat Min Mat Min Turns Passed 1238 | 95 217 426 193 307 Spaces Moved 786 | 57 139 263 127 200 Core 8 | 3 . . . 5 Treads . | . . . . . Legs 778 | 54 139 263 127 195 Wheels . | . . . . . Hover . | . . . . . Flight . | . . . . . Fastest Speed 50 | 50 120 120 120 120 Average Speed 120 | 116 120 120 120 122 Slowest Speed 300 | 120 120 190 120 300 Overloaded Moves . | . . . . . Propulsion Burnouts . | . . . . . Robots Hopped . | . . . . . Cave-ins Triggered . | . . . . . Exploration Rate (%) 29 | 4 31 51 20 39 Regions Visited 4 Branch Regions 2 Pre-discovered Areas . | . . . . . Known Exits Taken 3 | . 1 1 1 . Unknown Exits Taken 1 | 1 . . . . Scrap Searched 2 | . . 1 . 1 Spaces Dug 27 | . . . 27 . Terrain Destroyed 77 | . 38 . 36 3 Melee . | . . . . . Projectile . | . . . . . AOE 77 | . 38 . 36 3 Terrain Rammed . | . . . . . Walls Destroyed . | . . . . . Machines Disabled . | . . . . . Actions | -11 -10 -10 -9 -9 --------- Run | Scr Mat Min Mat Min Total 929 | 78 164 310 144 233 Wait 1 | . . 1 . . Move 782 | 56 138 262 126 200 Hop . | . . . . . Pick Up 26 | 10 7 5 2 2 Fast Attach . | . . . . . Attach 16 | 6 1 3 2 4 Detach . | . . . . . Swap 12 | . 4 2 2 4 Drop 11 | . 2 3 . 6 Fire 81 | 6 12 34 12 17 Melee . | . . . . . Ram . | . . . . . Kick . | . . . . . Crush . | . . . . . Escape Stasis . | . . . . . Rewire . | . . . . . Trap . | . . . . . Miscellaneous . | . . . . . Route ------- -11/Scrapyard -10/Materials -10/Mines -9/Materials -9/Mines History --------- Turn | Location | Event 2 | -11/Scrapyard | Met Revision 17 18 | -11/Scrapyard | Discovered new exit (range 16) 96 | -11/Scrapyard | Entered Materials 302 | -10/Materials | Discovered new exit (range 8) 308 | -10/Materials | Build established: Mutant 309 | -10/Materials | Identified exit to Mines 313 | -10/Materials | Entered Mines 315 | -10/Mines | Met a Derelict bent on vengeance 501 | -10/Mines | Core integrity fell below 50% 675 | -10/Mines | YI-UF0 nonchalantly dropped a Grenade Launcher on the ground 716 | -10/Mines | Discovered new exit (range 16) 737 | -10/Mines | Identified exit to Materials 739 | -10/Mines | Entered Materials 739 | -9/Materials | Evolved 2 slots: Propulsion x2 852 | -9/Materials | Destroyed 7 combat bots 903 | -9/Materials | Discovered new exit (range 13) 916 | -9/Materials | Identified exit to Mines 932 | -9/Materials | Entered Mines 986 | -9/Mines | A weapon hastily lodged in a ceiling crevice suddenly fell to the ground 1010 | -9/Mines | Build established: Scavenger-Mutant 1029 | -9/Mines | Learned Materials emergency access door positions 1124 | -9/Mines | Found the Drone Emporium 1134 | -9/Mines | Found Prototype Device 1161 | -9/Mines | Assembled infested the area 1166 | -9/Mines | Assisted by a Guerilla fighting off Assembled 1215 | -9/Mines | Core integrity fell below 50% 1223 | -9/Mines | Core integrity fell below 20% 1239 | -9/Mines | Destroyed by D-53 Grenadier with Mini Grenade Launcher Last Messages --------------- 01220_ U-05 Engineer lays Concrete. 01220_ D-53 Grenadier destroyed. 01221_ The unstable cave ceiling collapses. 01222_ U-05 Engineer builds a Wall. 01224_ Aluminum Leg destroyed. 01225_ U-05 Engineer lays Concrete. 01226_ The unstable cave ceiling collapses. 01226_ U-05 Engineer lays Concrete. 01228_ The unstable cave ceiling collapses. 01228_ U-05 Engineer lays Concrete. 01230_ The unstable cave ceiling collapses. 01231_ Hvy. Battle Rifle destroyed. 01231_ Lgt. Ion Engine destroyed. 01231_ T-07 Excavator destroyed. 01233_ Chain reaction triggered in Corrupted Lgt. Deuterium Engine. 01234_ The unstable cave ceiling collapses. 01234_ ALERT: Construction progress impeded, dispatching reinforcements to local area. 01237_ The unstable cave ceiling collapses. Map ----- +----------------------------------------------------+ | ??????????????????????## #???# #???? | | ??????????????????????# ##???# #???? | | ??????????????????????# #????# ##???? | | ??????????????????????## ##???#=[ ##????? | | ??????????????????????## #???#=%% ##?????? | | ????????????????????### ##### !###??????? | | ???????????????????## ## #????????? | | ???????????????????# ### ####!#????????? | | ???????????????????# ##?# #??# #????????? | | ???????????????????## #?## #??# #????????? | | ????????????????????## #? ??# #????????? | | ???????????????????### ## """"??# #????????? | | ?????????????######## ###? """"??# #????????? | | ????????????## # # # #?? """"??# #????????? | | ???????????## # # ### ?# #????????? | | ???????????# #####?# #????????? | | ??# # #?????# #????????? | | ?? u # # # ##?????# #????????? | | ?? "% ] d # # #?????# #????????? | | ?? ### ! # ##????# #????????? | | ????????????# # #????# #????????? | | ???????????# ## !%##????# #????????? | | ??????????????### # = ##???# #????????? | | ????????????????##### ##??# #????????? | | ????????????????????# ##?# #????????? | | ????????????????????## @ ### #????????? | | ?????????????????????## # # #????????? | | ??????????????????????### ### ####????????? | | ????????????????????????# #### ##????#####??? | | ????????????????????????#u ######?????# ##?? | | ?????????????????????#### ##???????# #?? | | ?????????????????????# ##???????# #?? | | ?????????????????????# # k #######??# #?? | | ?????????????????????# ##### #### #?? | | ?????????????????????# ????## ## #?? | | ?????????????????????#??????# ##?? | | ????????????????????????????## ##??? | | ?????????????????????????????# #???? | | ?????????????????????????????# #???? | | ?????????????????????????????# ##???? | | ?????????????????????????????## ###????? | | ??????????????????????????????### ##??????? | | ????????????????????????????????## #???????? | | ?????????????????????????????????# #???????? | | ?????????????????????????????????## ##???????? | | ??????????????????????????????????####????????? | | ??????????????????????????????????????????????? | | ??????????????????????????????????????????????? | | ??????????????????????????????????????????????? | | | +----------------------------------------------------+ Best States ------------- Heat Dissipation 28 Energy Generation 10 Energy Capacity 250 Matter Stores 300 Matter Capacity 300 Sight Range 16 Terrain Scan Density 10 Evasion (%) 55 Item Schematics ----------------- None Robot Schematics ------------------ None Fabricated ------------ Nothing Alien Tech Used ----------------- None Achievements -------------- True Hacker Challenges ------------ None Game ------ Seed MagneticDecoyChronowheel Manual? 0 Play Time 00:25:31 Cumulative 13.8 hours Start 2022.05.13 @ 08:47:59 End 2022.05.15 @ 00:11:48 Sessions 3 Manual Loads 0 Difficulty Rogue Special Mode None Game No. 21 Rogue 21 Adventurer 0 Explorer 0 Win Type - Total 0 Types 0/0/0/0/0/0/0/0/0 Lore% 12 Gallery% 18 Achievement% 13 Wizard Run 0 Options --------- ASCII 0 Keyboard 0 Movement Mouse Keybinds 0 Fullscreen 1 Font 32/SmallcapsGlow Map View 63x52 Tactical HUD 1 Map Filters NONE Filters NONE Steam 1 RUN: 89acbd23-3b26-4dde-9e20-f6d9a51b2006